bitfinex-derivatives/quotes_BTCF0:USTF0_20250912
["timestamp","ask_amount","ask_price","bid_price","bid_amount"]
[1757719277117,0.04128464,116030.0,116020.0,1.65499062]
[1757719277509,0.01387,116030.0,116020.0,1.65499062]
[1757719278116,0.04129187,116030.0,116020.0,1.65499062]
[1757719278714,0.04128924,116030.0,116020.0,1.65499062]
[1757719281722,0.04128924,116030.0,116020.0,1.50792708]
[1757719283424,0.04128924,116030.0,116020.0,1.65499062]
[1757719284226,0.01387,116030.0,116020.0,1.65499062]
[1757719285127,0.01387,116030.0,116020.0,1.50792708]
[1757719285627,0.04127832,116030.0,116020.0,1.65499062]
[1757719289529,0.04127832,116030.0,116020.0,1.50792708]
[1757719289825,0.31383832,116030.0,116020.0,1.46940708]
[1757719290027,0.31383832,116030.0,116020.0,1.32234354]
[1757719290227,0.31383832,116030.0,116020.0,0.3638]
[1757719290427,0.31383832,116030.0,116020.0,1.10860708]
[1757719290622,0.31383832,116030.0,116020.0,0.29712708]
[1757719290824,0.31383832,116030.0,116020.0,1.10856708]
[1757719291327,0.31383832,116030.0,116020.0,0.96150354]
[1757719293523,0.31383832,116030.0,116020.0,1.10856708]
[1757719295926,0.31383832,116030.0,116020.0,0.81444]
[1757719296132,0.31383832,116030.0,116020.0,1.10856708]
[1757719299437,0.06383832,116030.0,116020.0,1.10856708]
[1757719299634,0.06383832,116030.0,116020.0,0.96150354]
[1757719302532,0.06383832,116030.0,116020.0,1.10856708]
[1757719302928,0.42463832,116030.0,116020.0,1.10856708]
[1757719303934,0.42463832,116030.0,116020.0,0.81444]
[1757719304233,0.42463832,116030.0,116020.0,1.10856708]
[1757719304630,0.42463832,116030.0,116020.0,0.29712708]
[1757719304835,0.42463832,116030.0,116020.0,0.96122354]
[1757719306529,0.57170186,116030.0,116020.0,0.003]
[1757719306735,0.82170186,116030.0,116020.0,0.77104]
[1757719308233,0.82170186,116030.0,116020.0,0.003]
[1757719314043,0.67463832,116030.0,116020.0,0.003]
[1757719314343,0.82170186,116030.0,116020.0,0.003]
[1757719316139,0.82170186,116030.0,116020.0,0.15006354]
[1757719318339,0.78495489,116030.0,116020.0,0.11331657]
[1757719324356,0.78495489,116030.0,116020.0,0.22363314]
[1757719324958,0.78495489,116030.0,116020.0,0.003]
[1757719325158,0.78495489,116030.0,116020.0,0.22363314]
[1757719326357,0.67463832,116030.0,116020.0,0.22363314]
[1757719326552,0.67463832,116030.0,116020.0,0.33394971]
[1757719327259,0.78495489,116030.0,116020.0,0.22363314]
[1757719327659,0.78495489,116030.0,116020.0,0.003]
[1757719327861,0.78495489,116030.0,116020.0,0.22363314]
[1757719340881,0.78495489,116030.0,116020.0,0.003]
[1757719341178,0.78495489,116030.0,116020.0,0.22363314]
[1757719342481,0.81589909,116030.0,116020.0,0.22363314]
[1757719346476,0.81589909,116030.0,116020.0,0.11331657]
[1757719346979,0.92621566,116030.0,116020.0,0.11331657]
[1757719353085,0.70558252,116030.0,116020.0,0.11331657]
[1757719353285,0.92621566,116030.0,116020.0,0.11331657]
[1757719353488,0.70558252,116030.0,116020.0,0.11331657]
[1757719353686,0.81589909,116030.0,116020.0,0.11331657]
[1757719355287,0.81589909,116030.0,116020.0,0.003]
[1757719355487,0.81589909,116030.0,116020.0,0.11331657]
[1757719358001,0.81612743,116030.0,116020.0,0.11331657]
[1757719359299,0.56612743,116030.0,116020.0,0.11331657]
[1757719359487,0.676444,116030.0,116020.0,0.003]
[1757719359693,0.78676057,116030.0,116020.0,0.003]
[1757719363100,0.83317688,116030.0,116020.0,0.003]
[1757719363302,0.78676057,116030.0,116020.0,0.003]
[1757719364806,0.676444,116030.0,116020.0,0.11331657]
[1757719370411,1.37520743,116030.0,116020.0,0.11331657]
[1757719370723,1.485524,116030.0,116020.0,0.11331657]
[1757719372514,0.06406666,116030.0,116020.0,0.58394971]
[1757719372719,0.02863666,116030.0,116020.0,1.75374971]
[1757719372919,0.02863666,116030.0,116020.0,2.31374971]
[1757719373216,0.02863666,116030.0,116020.0,1.50474971]
[1757719373422,0.04143666,116030.0,116020.0,1.50474971]
[1757719373713,0.06298666,116030.0,116020.0,1.69366971]
[1757719373920,0.03535,116030.0,116020.0,1.69366971]
[1757719375217,0.001,116030.0,116020.0,1.94366971]
[1757719375414,0.01287,116050.0,116020.0,2.42980411]
[1757719375618,0.04046925,116050.0,116040.0,0.69174971]
[1757719375821,0.04046925,116050.0,116040.0,2.08058971]
[1757719377420,0.04146925,116050.0,116040.0,2.08058971]
[1757719377622,0.04246925,116050.0,116040.0,2.08058971]
[1757719377820,0.08168696,116060.0,116040.0,2.08058971]
[1757719377821,0.0437442,116070.0,116040.0,2.77750481]
[1757719378022,0.04037602,116070.0,116060.0,0.69174971]
[1757719378222,0.04037602,116070.0,116060.0,1.95042971]
[1757719379121,0.04137602,116070.0,116060.0,1.95042971]
[1757719379424,0.0138,116070.0,116060.0,1.95042971]
[1757719380317,0.0138,116070.0,116060.0,1.14174971]
[1757719380521,0.0128,116080.0,116060.0,2.39630059]
[1757719380722,0.0128,116080.0,116070.0,0.65266386]
[1757719380922,0.0128,116080.0,116070.0,1.25166386]
[1757719381916,0.0148,116080.0,116070.0,1.25166386]
[1757719382122,0.0158,116080.0,116070.0,1.50166386]
[1757719383819,0.0158,116080.0,116070.0,1.50366386]
[1757719388623,0.0158,116080.0,116070.0,2.31166386]
[1757719389924,0.0158,116080.0,116070.0,1.50366386]
[1757719390424,0.0158,116080.0,116070.0,2.31154386]
[1757719392725,0.0158,116080.0,116070.0,1.50366386]
[1757719392934,0.0158,116080.0,116070.0,2.31138386]
[1757719396337,0.04302038,116080.0,116070.0,2.31138386]
[1757719398636,0.03022038,116080.0,116070.0,2.54441309]
[1757719399632,0.03022038,116080.0,116070.0,2.39748116]
[1757719400337,0.03022038,116080.0,116070.0,2.29441309]
[1757719401938,0.03022038,116080.0,116070.0,2.14748116]
[1757719404438,0.0339442,116080.0,116070.0,2.14748116]
[1757719404836,0.06116458,116080.0,116070.0,2.14748116]
[1757719407341,0.10758089,116080.0,116070.0,2.14748116]
[1757719408545,0.07663669,116080.0,116070.0,2.14748116]
[1757719408838,0.09050669,116080.0,116070.0,1.0458973]
[1757719409043,0.09050669,116080.0,116070.0,2.14664116]
[1757719410439,0.09050669,116080.0,116070.0,1.33976116]
[1757719410644,0.09050669,116080.0,116070.0,2.06046386]
[1757719412544,0.09050669,116080.0,116070.0,1.25366386]
[1757719412741,0.09050669,116080.0,116070.0,2.06042386]
[1757719412945,0.09050669,116080.0,116070.0,1.25366386]
[1757719413243,0.09050669,116080.0,116070.0,2.06034386]
[1757719414843,0.09050669,116080.0,116070.0,1.25366386]
[1757719415346,0.09050669,116080.0,116070.0,2.06022386]
[1757719421150,0.07508924,116080.0,116070.0,2.06022386]
[1757719425451,0.04409038,116080.0,116070.0,2.06022386]
[1757719425846,0.07508924,116080.0,116070.0,2.06022386]
[1757719426152,0.04409038,116080.0,116070.0,2.06022386]
[1757719430649,0.02722038,116080.0,116070.0,2.06022386]
[1757719430844,0.01374,116090.0,116070.0,2.54324699]
[1757719431049,0.01374,116090.0,116080.0,0.80159579]
[1757719431252,0.12354886,116100.0,116090.0,0.0860827]
[1757719431455,0.12354886,116100.0,116090.0,2.26343849]
[1757719431456,0.09255,116100.0,116090.0,2.26343849]
[1757719432660,0.09255,116100.0,116090.0,2.17735579]
[1757719432963,0.09255,116100.0,116090.0,2.17535579]
[1757719433753,0.09555,116100.0,116090.0,2.17535579]
[1757719434757,0.09555,116100.0,116090.0,2.17635579]
[1757719437159,0.09555,116100.0,116090.0,1.37059579]
[1757719437560,0.09555,116100.0,116090.0,2.17595579]
[1757719440460,0.09555,116100.0,116090.0,1.73516]
[1757719440759,0.09555,116100.0,116090.0,2.17595579]
[1757719441357,0.08275,116100.0,116090.0,2.17595579]
[1757719441959,0.09649,116100.0,116090.0,1.73516]
[1757719442158,0.09649,116100.0,116090.0,2.17595579]
[1757719442355,0.09649,116100.0,116090.0,2.06549342]
[1757719448969,0.09649,116100.0,116090.0,1.26013342]
[1757719449163,0.09649,116100.0,116090.0,2.06501342]
[1757719451963,0.09649,116100.0,116090.0,1.70621342]
[1757719452167,0.09649,116100.0,116090.0,2.42781342]
[1757719461275,0.09649,116100.0,116090.0,2.09748]
[1757719461474,0.09649,116100.0,116090.0,2.42781342]
[1757719465375,0.01674,116100.0,116090.0,2.42781342]
[1757719471282,0.01674,116100.0,116090.0,2.09748]
[1757719471484,0.01674,116100.0,116090.0,2.42781342]
[1757719472791,0.01674,116100.0,116090.0,1.62293342]
[1757719473091,0.01674,116100.0,116090.0,2.42713342]
[1757719473691,0.01674,116100.0,116090.0,1.62293342]
[1757719473891,0.01674,116100.0,116090.0,2.42709342]
[1757719481497,0.01674,116100.0,116090.0,2.09676]
[1757719481794,0.01674,116100.0,116090.0,2.42709342]
[1757719488597,0.07975,116110.0,116090.0,2.76317652]
[1757719488801,0.01322,116120.0,116110.0,0.0860687]
[1757719488999,0.01374,116130.0,116110.0,2.18112212]
[1757719489295,0.01374,116130.0,116120.0,0.69113342]
[1757719489499,0.01374,116130.0,116120.0,1.29113342]
[1757719490996,0.09066,116150.0,116140.0,0.0860465]
[1757719491201,0.01364,116170.0,116150.0,0.0860391]
[1757719491402,0.01364,116170.0,116160.0,1.49501342]
[1757719491602,0.01364,116170.0,116160.0,1.49301342]
[1757719492791,0.01864,116170.0,116160.0,1.49301342]
[1757719494694,0.01564,116170.0,116160.0,1.49301342]
[1757719494902,0.01764,116170.0,116160.0,1.49301342]
[1757719499699,0.004,116170.0,116160.0,1.92301342]
[1757719500005,0.01364,116180.0,116160.0,2.36984212]
[1757719500206,0.01364,116190.0,116170.0,0.69113342]
[1757719500407,0.03585,116190.0,116180.0,1.49469342]
[1757719501410,0.03585,116190.0,116180.0,1.49169342]
[1757719501810,0.03585,116190.0,116180.0,1.49165342]
[1757719502011,0.04085,116190.0,116180.0,1.49165342]
[1757719502210,0.04385,116190.0,116180.0,1.49265342]
[1757719504410,0.03885,116190.0,116180.0,1.60219893]
[1757719504610,0.04185,116190.0,116180.0,1.60219893]
[1757719505111,0.04185,116190.0,116180.0,1.16232]
[1757719505312,0.04185,116190.0,116180.0,1.45557262]
[1757719506003,0.04185,116190.0,116180.0,1.16232]
[1757719506203,0.04185,116190.0,116180.0,1.45557262]
[1757719507608,0.01964,116190.0,116180.0,1.60219893]
[1757719508309,0.04185,116190.0,116180.0,0.79867893]
[1757719508510,0.04185,116190.0,116180.0,1.60203893]
[1757719508815,0.04185,116190.0,116180.0,0.79867893]
[1757719509010,0.04185,116190.0,116180.0,1.60199893]
[1757719509216,0.06839107,116190.0,116180.0,1.60199893]
[1757719511117,0.06839107,116190.0,116180.0,0.79867893]
[1757719511311,0.06839107,116190.0,116180.0,1.60195893]
[1757719511911,0.04618107,116190.0,116180.0,0.79867893]
[1757719512117,0.04618107,116190.0,116180.0,1.60195893]
[1757719512813,0.04618107,116190.0,116180.0,0.79867893]
[1757719513014,0.06839107,116190.0,116180.0,0.3588]
[1757719513215,0.06839107,116190.0,116180.0,1.60191893]
[1757719514017,0.06839107,116190.0,116180.0,0.79867893]
[1757719514216,0.06839107,116190.0,116180.0,1.60191893]
[1757719514717,0.06839107,116190.0,116180.0,1.45529262]
[1757719514926,0.31839107,116190.0,116180.0,0.3588]
[1757719515112,0.84597135,116190.0,116180.0,0.80424]
[1757719515412,0.87697021,116190.0,116180.0,0.80448]
[1757719516621,0.87697021,116190.0,116180.0,0.8046]
[1757719517112,0.89238766,116190.0,116180.0,0.8046]
[1757719517515,0.74576135,116190.0,116180.0,0.95122631]
[1757719518118,0.69934504,116190.0,116180.0,0.8046]
[1757719518412,0.69934504,116190.0,116180.0,0.95122631]
[1757719519119,0.76123,116190.0,116180.0,0.95122631]
[1757719520419,0.76123,116190.0,116180.0,0.14762631]
[1757719520618,0.76123,116190.0,116180.0,0.95090631]
[1757719522321,0.76123,116190.0,116180.0,0.80428]
[1757719522522,0.76123,116190.0,116180.0,0.95090631]
[1757719523315,0.90785631,116190.0,116180.0,0.95090631]
[1757719523522,0.90785631,116190.0,116180.0,0.001]
[1757719524720,0.76123,116190.0,116180.0,0.001]
[1757719525021,0.90785631,116190.0,116180.0,0.001]
[1757719534130,0.84597135,116190.0,116180.0,0.001]
[1757719534324,0.90773419,116190.0,116180.0,0.001]
[1757719535124,0.9077342,116190.0,116180.0,0.001]
[1757719535833,0.76110789,116190.0,116180.0,0.001]
[1757719536018,0.9077342,116190.0,116180.0,0.001]
[1757719537134,0.76110789,116190.0,116180.0,0.001]
[1757719537330,0.9077342,116190.0,116180.0,0.001]
[1757719539426,0.6577342,116190.0,116180.0,0.001]
[1757719541634,0.51110789,116190.0,116180.0,0.001]
[1757719542130,1.4609742,116190.0,116180.0,0.001]
[1757719542329,0.6577342,116190.0,116180.0,0.001]
[1757719543934,0.51110789,116190.0,116180.0,0.001]
[1757719544135,0.6577342,116190.0,116180.0,0.001]
[1757719545135,0.44934504,116190.0,116180.0,0.001]
[1757719545333,0.59597135,116190.0,116170.0,0.94000631]
[1757719545636,0.47349162,116180.0,116170.0,0.94000631]
[1757719545835,0.50003269,116180.0,116170.0,0.94000631]
[1757719547137,0.45361572,116180.0,116170.0,0.94000631]
[1757719547337,0.45461572,116180.0,116170.0,0.94000631]
[1757719547941,0.45461572,116180.0,116170.0,1.19000631]
[1757719548948,0.45761572,116180.0,116170.0,1.19000631]
[1757719549241,0.42667107,116180.0,116170.0,1.19000631]
[1757719551442,0.42667107,116180.0,116170.0,1.04338]
[1757719551638,0.42667107,116180.0,116170.0,1.19000631]
[1757719554749,0.42696576,116180.0,116170.0,1.19000631]
[1757719555150,0.45791041,116180.0,116170.0,1.19000631]
[1757719555951,0.42696576,116180.0,116170.0,1.19000631]
[1757719556452,0.42696576,116180.0,116170.0,1.04338]
[1757719556638,0.42696576,116180.0,116170.0,1.19000631]
[1757719558152,0.45791041,116180.0,116170.0,1.19000631]
[1757719558451,1.00116303,116180.0,116150.0,0.14662631]
[1757719558645,1.00116303,116180.0,116140.0,1.80022631]
[1757719558646,0.03531,116150.0,116140.0,1.6536]
[1757719558853,0.03531,116150.0,116140.0,2.74985262]
[1757719559149,0.06215563,116150.0,116140.0,2.74985262]
[1757719560348,0.06215563,116150.0,116140.0,2.75085262]
[1757719561353,0.06215563,116150.0,116140.0,2.75285262]
[1757719563155,0.03531,116150.0,116140.0,2.75285262]
[1757719563657,0.03531,116150.0,116140.0,1.94985262]
[1757719563857,0.03531,116150.0,116140.0,2.75793262]
[1757719564557,0.04373523,116150.0,116140.0,2.75793262]
[1757719566350,0.03531,116150.0,116140.0,2.79484296]
[1757719566551,0.03531,116150.0,116140.0,3.15564296]
[1757719570466,0.01345,116150.0,116140.0,3.68564296]
[1757719570666,0.01345,116150.0,116140.0,3.93564296]
[1757719571358,0.01345,116160.0,116140.0,3.93564296]
[1757719571556,0.01345,116160.0,116150.0,0.69096296]
[1757719571557,0.04025215,116160.0,116150.0,0.69096296]
[1757719571767,0.04025215,116160.0,116150.0,1.25096296]
[1757719573871,0.01345,116160.0,116150.0,1.25096296]
[1757719574361,0.01345,116160.0,116150.0,1.25196296]
[1757719576671,0.01345,116160.0,116150.0,0.6318]
[1757719576965,0.03531,116160.0,116150.0,1.66114864]
[1757719577169,0.03531,116160.0,116150.0,1.77120296]
[1757719579373,0.03531,116160.0,116150.0,1.44104]
[1757719579569,0.03531,116160.0,116150.0,1.41040296]
[1757719586179,0.03531,116160.0,116150.0,0.271]
[1757719586372,0.55318548,116160.0,116150.0,0.22110864]
[1757719586572,0.69313116,116160.0,116150.0,1.13860296]
[1757719586771,0.80318548,116160.0,116150.0,0.11105432]
[1757719586984,0.80318548,116160.0,116150.0,0.91889432]
[1757719587466,0.69313116,116160.0,116150.0,1.02894864]
[1757719587672,0.69313116,116160.0,116150.0,0.91889432]
[1757719587978,0.87178757,116160.0,116150.0,0.80884]
[1757719588273,0.87178757,116160.0,116150.0,0.91889432]
[1757719588574,0.87178757,116160.0,116150.0,0.80884]
[1757719588776,0.87178757,116160.0,116150.0,0.91889432]
[1757719588969,0.76173325,116160.0,116150.0,0.91889432]
[1757719589270,0.87178757,116160.0,116150.0,0.91889432]
[1757719589575,0.76173325,116160.0,116150.0,1.02894864]
[1757719589764,0.87178757,116160.0,116150.0,1.02894864]
[1757719589969,0.76173325,116160.0,116150.0,1.13900296]
[1757719590168,0.76173325,116160.0,116150.0,0.80884]
[1757719590373,0.76173325,116160.0,116150.0,1.13900296]
[1757719590876,0.76173325,116160.0,116150.0,1.02894864]
[1757719591375,0.76173325,116160.0,116150.0,1.13900296]
[1757719593083,0.76173325,116160.0,116150.0,0.33116296]
[1757719593382,0.76173325,116160.0,116150.0,1.13848296]
[1757719595881,0.87178757,116160.0,116150.0,1.02754864]
[1757719597370,1.09189621,116160.0,116150.0,0.001]
[1757719597881,1.12284086,116160.0,116150.0,0.001]
[1757719598278,1.09189621,116160.0,116150.0,0.001]
[1757719599371,0.84189621,116160.0,116150.0,0.001]
[1757719600485,0.87284086,116160.0,116150.0,0.001]
[1757719600986,1.12284086,116160.0,116150.0,0.001]
[1757719603279,1.92760086,116160.0,116150.0,0.001]
[1757719611585,1.92760086,116160.0,116110.0,0.3608]
[1757719611787,0.03478,116100.0,116080.0,0.3608]
[1757719611991,0.03478,116100.0,116090.0,0.3662]
[1757719612290,0.01296,116100.0,116090.0,0.727]
[1757719612491,0.01296,116100.0,116090.0,0.977]
[1757719612891,0.01296,116100.0,116090.0,1.30716296]
[1757719613184,0.01296,116100.0,116090.0,1.31571726]
[1757719614192,0.01296,116100.0,116090.0,1.30716296]
[1757719614694,0.01396,116100.0,116090.0,1.31316296]
[1757719614881,0.01396,116100.0,116090.0,1.31916296]
[1757719615689,0.01396,116100.0,116090.0,1.32766722]
[1757719624891,0.01396,116100.0,116090.0,1.94766722]
[1757719628502,0.01396,116100.0,116090.0,1.91119544]
[1757719644413,0.01396,116100.0,116090.0,1.61750426]
[1757719644604,0.01396,116100.0,116090.0,1.91119544]
[1757719655919,0.01296,116110.0,116090.0,1.89412613]
[1757719656125,0.01296,116110.0,116100.0,0.80133677]
[1757719656327,0.01296,116110.0,116100.0,1.42133677]
[1757719657925,0.01396,116110.0,116100.0,1.43033677]
[1757719662338,0.01296,116130.0,116100.0,1.68033677]
[1757719662533,0.05977324,116140.0,116120.0,0.80133677]
[1757719662838,0.08220324,116140.0,116130.0,1.31088559]
[1757719664940,0.08220324,116140.0,116130.0,1.31288559]
[1757719665934,0.08220324,116140.0,116130.0,1.31488559]
[1757719666441,0.08220324,116140.0,116130.0,1.46173118]
[1757719667938,0.08220324,116140.0,116130.0,1.46157118]
[1757719670237,0.04709324,116140.0,116130.0,2.10841677]
[1757719670444,0.06069324,116140.0,116130.0,1.96157118]
[1757719672242,0.06069324,116140.0,116130.0,1.97038654]
[1757719672428,0.06069324,116140.0,116130.0,1.96157118]
[1757719674031,0.03383454,116140.0,116130.0,1.96157118]
[1757719675740,0.03383454,116140.0,116130.0,1.97015967]
[1757719677546,0.03383454,116140.0,116130.0,1.96157118]
[1757719680544,0.03383454,116140.0,116130.0,1.97006881]
[1757719682550,0.03383454,116140.0,116130.0,1.96101118]
[1757719687651,0.03383454,116140.0,116130.0,2.10785677]
[1757719687853,0.02023454,116140.0,116130.0,2.10785677]
[1757719690154,0.03318454,116140.0,116130.0,1.66732]
[1757719690360,0.03318454,116140.0,116130.0,1.99749916]
[1757719695059,0.01268,116150.0,116130.0,1.99749916]
[1757719695256,0.03537,116170.0,116140.0,0.69097916]
[1757719695463,0.04772707,116170.0,116160.0,0.33217916]
[1757719695658,0.06067707,116170.0,116160.0,0.33217916]
[1757719696060,0.12921133,116170.0,116160.0,0.002]
[1757719696260,0.06067707,116170.0,116160.0,0.33217916]
[1757719697165,0.06267707,116170.0,116160.0,0.33217916]
[1757719697766,0.06267707,116170.0,116160.0,0.002]
[1757719697963,0.06267707,116170.0,116160.0,0.33217916]
[1757719698162,0.06267707,116170.0,116160.0,0.002]
[1757719698372,0.06367707,116170.0,116160.0,0.002]
[1757719698569,0.06367707,116170.0,116160.0,0.3628]
[1757719699260,0.06367707,116170.0,116160.0,0.69297916]
[1757719699970,0.02985707,116170.0,116160.0,0.69297916]
[1757719700170,0.02985707,116170.0,116160.0,0.6128]
[1757719700471,0.01295,116180.0,116160.0,1.49297916]
[1757719700660,0.03564,116180.0,116170.0,1.51281916]
[1757719700860,0.06658465,116180.0,116170.0,1.51281916]
[1757719701166,0.06658465,116180.0,116170.0,0.82675]
[1757719701365,0.06658465,116180.0,116170.0,1.15692916]
[1757719701765,0.06758465,116180.0,116170.0,1.15692916]
[1757719701966,0.07058465,116180.0,116170.0,1.15692916]
[1757719703071,0.06958465,116180.0,116170.0,1.15692916]
[1757719703266,0.07058465,116180.0,116170.0,1.15692916]
[1757719706074,0.03964,116180.0,116170.0,1.15692916]
[1757719707677,0.03964,116180.0,116170.0,0.82675]
[1757719707876,0.03964,116180.0,116170.0,1.15692916]
[1757719708580,0.03964,116180.0,116170.0,0.00491]
[1757719708766,0.03964,116180.0,116170.0,0.82775]
[1757719708972,0.03964,116180.0,116170.0,1.15792916]
[1757719709172,0.03964,116180.0,116170.0,0.00491]
[1757719709379,0.05983838,116180.0,116170.0,0.89079944]
[1757719709581,0.05983838,116180.0,116170.0,1.00085916]
[1757719710668,0.05983838,116180.0,116170.0,1.00576916]
[1757719710873,0.05983838,116180.0,116170.0,0.67559]
[1757719711074,0.05983838,116180.0,116170.0,1.00576916]
[1757719712382,0.08735193,116180.0,116170.0,1.00576916]
[1757719715076,0.06715355,116180.0,116170.0,1.00576916]
[1757719715273,0.06715355,116180.0,116170.0,0.67559]
[1757719715473,0.06715355,116180.0,116170.0,1.00576916]
[1757719717985,0.06715355,116180.0,116170.0,0.67559]
[1757719718186,0.06715355,116180.0,116170.0,1.00576916]
[1757719720288,0.06715355,116180.0,116170.0,0.67559]
[1757719720489,0.06715355,116180.0,116170.0,1.00576916]
[1757719721591,0.06715355,116180.0,116170.0,0.67559]
[1757719721985,0.06715355,116180.0,116170.0,1.00576916]
[1757719724200,0.03572,116170.0,116160.0,0.11496972]
[1757719724485,0.01372,116160.0,116150.0,0.22502944]
[1757719724687,0.39652,116160.0,116150.0,1.04566944]
[1757719724891,0.42340166,116160.0,116150.0,0.22502944]
[1757719725094,0.42340166,116160.0,116150.0,1.04594944]
[1757719725587,0.42340166,116160.0,116150.0,1.15600916]
[1757719725787,0.42340166,116160.0,116150.0,0.82583]
[1757719725988,0.42340166,116160.0,116150.0,1.15600916]
[1757719726390,0.06260166,116160.0,116150.0,1.15600916]
[1757719726791,0.03572,116160.0,116150.0,0.33508916]
[1757719726994,0.03572,116160.0,116150.0,0.82699]
[1757719727294,0.03572,116160.0,116150.0,1.15716916]
[1757719727496,0.03572,116160.0,116150.0,1.15816916]
[1757719729898,0.03572,116160.0,116150.0,0.00591]
[1757719730091,0.03572,116160.0,116150.0,1.15812916]
[1757719730797,0.03572,116160.0,116150.0,0.82795]
[1757719731000,0.03572,116160.0,116150.0,1.15812916]
[1757719731193,0.03572,116160.0,116150.0,0.82795]
[1757719731398,0.03572,116160.0,116150.0,1.15812916]
[1757719733099,0.03572,116160.0,116150.0,0.82795]
[1757719733299,0.03572,116160.0,116150.0,1.15812916]
[1757719734401,0.03572,116160.0,116150.0,0.82795]
[1757719734591,0.03572,116160.0,116150.0,1.15812916]
[1757719734798,0.39652,116160.0,116150.0,1.16072916]
[1757719737005,0.39652,116160.0,116150.0,0.83055]
[1757719737203,0.39652,116160.0,116150.0,1.16072916]
[1757719739208,0.03572,116160.0,116150.0,1.16072916]
[1757719739504,0.06226929,116160.0,116150.0,1.16072916]
[1757719740602,0.06226929,116160.0,116150.0,1.15892916]
[1757719742798,0.06226562,116160.0,116150.0,1.15848916]
[1757719743605,0.06226562,116160.0,116150.0,0.93836972]
[1757719743813,0.06226562,116160.0,116150.0,1.15848916]
[1757719744609,0.03572,116160.0,116150.0,0.82831]
[1757719744800,0.0622629,116160.0,116150.0,1.15848916]
[1757719745602,0.03572,116160.0,116150.0,1.15848916]
[1757719745806,0.06226258,116160.0,116150.0,1.15848916]
[1757719748810,0.03572,116160.0,116150.0,1.15848916]
[1757719750611,0.03572,116160.0,116150.0,0.9750398]
[1757719751212,0.06215709,116160.0,116150.0,0.9750398]
[1757719753809,0.06215709,116160.0,116150.0,0.82831]
[1757719754106,0.06215709,116160.0,116150.0,0.9750398]
[1757719755915,0.06215709,116160.0,116150.0,0.82831]
[1757719756216,0.06215709,116160.0,116150.0,0.9750398]
[1757719760318,0.02643709,116160.0,116150.0,0.9750398]
[1757719760521,0.06154709,116160.0,116150.0,1.4825696]
[1757719760823,0.02643709,116160.0,116150.0,1.71911]
[1757719761026,0.02643709,116160.0,116150.0,2.0125696]
[1757719762025,0.04011709,116160.0,116150.0,1.71911]
[1757719762225,0.04011709,116160.0,116150.0,2.0125696]
[1757719766133,0.04011709,116160.0,116150.0,1.71911]
[1757719766322,0.04011709,116160.0,116150.0,2.0125696]
[1757719770336,0.04011709,116160.0,116150.0,1.71911]
[1757719770636,0.04011709,116160.0,116150.0,2.0125696]
[1757719771338,0.04011709,116160.0,116150.0,1.71911]
[1757719771539,0.04011709,116160.0,116150.0,2.0125696]
[1757719772539,0.02643709,116160.0,116150.0,2.0125696]
[1757719773343,0.04011709,116160.0,116150.0,2.0125696]
[1757719776739,0.04011709,116160.0,116150.0,1.71911]
[1757719777142,0.04011709,116160.0,116150.0,2.0135696]
[1757719777336,0.04011709,116160.0,116150.0,2.0165696]
[1757719777643,0.04011709,116160.0,116150.0,1.72311]
[1757719777836,0.04011709,116160.0,116150.0,2.0165696]
[1757719780148,0.04011709,116160.0,116150.0,1.72311]
[1757719780345,0.04011709,116160.0,116150.0,2.0165696]
[1757719781343,0.04011709,116160.0,116150.0,1.4865696]
[1757719781540,0.04011709,116160.0,116150.0,1.6665696]
[1757719782045,0.04011709,116160.0,116150.0,1.1590398]
[1757719784950,0.06302709,116160.0,116150.0,0.3366398]
[1757719785149,0.06302709,116160.0,116150.0,1.1829198]
[1757719785345,0.06302709,116160.0,116150.0,1.5437198]
[1757719785544,0.06302709,116160.0,116150.0,1.6904496]
[1757719786249,0.06302709,116160.0,116150.0,1.3296496]
[1757719789253,0.06302709,116160.0,116150.0,1.3281296]
[1757719794958,0.06302709,116160.0,116150.0,0.1566398]
[1757719795163,0.06302709,116160.0,116150.0,0.9983598]
[1757719795861,0.06302709,116160.0,116150.0,0.85163]
[1757719796053,0.06302709,116160.0,116150.0,0.9983598]
[1757719796253,0.42382709,116160.0,116150.0,0.9983598]
[1757719796451,0.42382709,116160.0,116150.0,0.85163]
[1757719796655,0.42382709,116160.0,116150.0,0.9983598]
[1757719797659,0.42382709,116160.0,116150.0,0.85163]
[1757719797863,0.42382709,116160.0,116150.0,0.9983598]
[1757719798163,0.42382709,116160.0,116150.0,0.85163]
[1757719798463,0.42382709,116160.0,116150.0,0.9983598]
[1757719799967,0.42382709,116160.0,116150.0,0.85163]
[1757719800573,0.42382709,116160.0,116150.0,0.9983598]
[1757719800965,0.42382709,116160.0,116150.0,0.1566398]
[1757719801165,0.42382709,116160.0,116150.0,0.9948798]
[1757719802665,0.06302709,116160.0,116150.0,0.9948798]
[1757719802868,0.42382709,116160.0,116150.0,0.9948798]
[1757719803355,0.06302709,116160.0,116150.0,0.9948798]
[1757719803559,0.42382709,116160.0,116150.0,0.9948798]
[1757719806769,0.42382709,116160.0,116150.0,0.84815]
[1757719806975,0.42382709,116160.0,116150.0,0.9948798]
[1757719808378,0.42382709,116160.0,116150.0,0.84815]
[1757719808671,0.06302709,116160.0,116150.0,0.9948798]
[1757719809773,0.42382709,116160.0,116150.0,0.84815]
[1757719810180,0.42382709,116160.0,116150.0,0.9948798]
[1757719812373,0.42382709,116160.0,116150.0,1.17831341]
[1757719815869,0.42382709,116160.0,116150.0,0.84815]
[1757719816279,0.42382709,116160.0,116150.0,1.17831341]
[1757719818079,0.42382709,116160.0,116150.0,1.06825894]
[1757719819079,0.42382709,116160.0,116150.0,1.17831341]
[1757719819978,0.42382709,116160.0,116150.0,0.005]
[1757719819979,1.0039905,116160.0,116150.0,0.005]
[1757719820676,1.03493515,116160.0,116150.0,0.005]
[1757719820976,1.88072747,116160.0,116120.0,1.65312]
[1757719821168,0.14640447,116130.0,116120.0,1.76317447]
[1757719821373,0.50720447,116130.0,116120.0,1.65312]
[1757719821574,0.53371152,116130.0,116120.0,2.59341447]
[1757719822280,0.64376599,116130.0,116120.0,2.48336]
[1757719822484,0.53371152,116130.0,116120.0,2.59341447]
[1757719822980,0.53371152,116130.0,116120.0,0.12396447]
[1757719823177,0.53371152,116130.0,116120.0,0.95880447]
[1757719823475,0.54238452,116130.0,116120.0,0.95880447]
[1757719823682,0.65243899,116130.0,116120.0,0.84847]
[1757719823982,0.54238452,116130.0,116120.0,0.96152447]
[1757719825280,0.65243899,116130.0,116120.0,0.96152447]
[1757719825586,0.72001254,116130.0,116120.0,0.96088447]
[1757719826870,0.60995807,116130.0,116120.0,0.85083]